[Event "*** Titled Tuesday 3|2 Blitz"]
[Site "Chess.com"]
[Date "2015.07.07"]
[Round "9"]
[White "Ginger_GM"]
[Black "jbj"]
[Result "1/2-1/2"]
[WhiteElo "2391"]
[BlackElo "2289"]
[TimeControl "180+2"]
[EndTime "12:57:14 PDT"]
[Termination "Game drawn - insufficient material"]

1. g4 {[%clk 0:03:01.9]} 1... c6 {[%clk 0:02:56]} 2. g5 {[%clk 0:03:00.3]} 2...
h6 {[%clk 0:02:51.1]} 3. g6 {[%clk 0:03:00.5]} 3... fxg6 {[%clk 0:02:51.6]} 4.
d4 {[%clk 0:02:59.6]} 4... d5 {[%clk 0:02:50.3]} 5. Nf3 {[%clk 0:03:00.5]} 5...
Bf5 {[%clk 0:02:45.6]} 6. Bf4 {[%clk 0:02:54.6]} 6... g5 {[%clk 0:02:45.3]} 7.
Bg3 {[%clk 0:02:52.6]} 7... e6 {[%clk 0:02:43.8]} 8. h4 {[%clk 0:02:49.3]} 8...
gxh4 {[%clk 0:02:42.9]} 9. Nxh4 {[%clk 0:02:49.7]} 9... Bd6 {[%clk 0:02:38.2]}
10. e4 {[%clk 0:02:47.4]} 10... Bxe4 {[%clk 0:02:29.6]} 11. Qh5+ {[%clk
0:02:47.2]} 11... Kd7 {[%clk 0:02:29.5]} 12. Bxd6 {[%clk 0:02:45.2]} 12... Kxd6
{[%clk 0:02:30.6]} 13. f3 {[%clk 0:02:41.8]} 13... Bxc2 {[%clk 0:02:24.3]} 14.
Rg1 {[%clk 0:02:34.1]} 14... g5 {[%clk 0:02:22.2]} 15. Ng6 {[%clk 0:02:21.9]}
15... Bxg6 {[%clk 0:02:21.5]} 16. Qxg6 {[%clk 0:02:23.8]} 16... Qf6 {[%clk
0:02:21.7]} 17. Qd3 {[%clk 0:02:22.8]} 17... Nd7 {[%clk 0:02:21.5]} 18. Nc3
{[%clk 0:02:20.8]} 18... Re8 {[%clk 0:02:09.8]} 19. O-O-O {[%clk 0:02:19.6]}
19... Kc7 {[%clk 0:02:10.7]} 20. Qc2 {[%clk 0:02:08.6]} 20... Kb8 {[%clk
0:02:09.5]} 21. b4 {[%clk 0:02:07.1]} 21... e5 {[%clk 0:02:07]} 22. dxe5 {[%clk
0:02:04.1]} 22... Nxe5 {[%clk 0:02:07.1]} 23. b5 {[%clk 0:02:03.7]} 23... Nxf3
{[%clk 0:02:02.5]} 24. Rg4 {[%clk 0:01:52.5]} 24... Ne7 {[%clk 0:01:55.9]} 25.
Bg2 {[%clk 0:01:38.7]} 25... Ne5 {[%clk 0:01:53.2]} 26. Ra4 {[%clk 0:01:35.1]}
26... Nc8 {[%clk 0:01:41.3]} 27. bxc6 {[%clk 0:01:33.5]} 27... Nxc6 {[%clk
0:01:41.3]} 28. Nxd5 {[%clk 0:01:29.4]} 28... Qa1+ {[%clk 0:01:37.3]} 29. Kd2
{[%clk 0:01:30.5]} 29... Qe5 {[%clk 0:01:30.9]} 30. Kc1 {[%clk 0:01:01.8]} 30...
N8e7 {[%clk 0:01:10.9]} 31. Nxe7 {[%clk 0:00:58.9]} 31... Rxe7 {[%clk
0:01:11.7]} 32. Bxc6 {[%clk 0:00:57.2]} 32... Qa1+ {[%clk 0:01:07.8]} 33. Qb1
{[%clk 0:00:52.7]} 33... Qc3+ {[%clk 0:01:02]} 34. Qc2 {[%clk 0:00:52.6]} 34...
Qa1+ {[%clk 0:01:01.7]} 35. Qb1 {[%clk 0:00:53.2]} 35... Qxb1+ {[%clk
0:01:02.2]} 36. Kxb1 {[%clk 0:00:53.9]} 36... bxc6 {[%clk 0:01:04.1]} 37. Rd6
{[%clk 0:00:54.8]} 37... Rc8 {[%clk 0:01:02.2]} 38. Rxh6 {[%clk 0:00:55]} 38...
Rg7 {[%clk 0:00:58.9]} 39. Rb4+ {[%clk 0:00:49.8]} 39... Ka8 {[%clk 0:00:59.5]}
40. Kc2 {[%clk 0:00:46.1]} 40... g4 {[%clk 0:01:00.3]} 41. Rh2 {[%clk
0:00:45.4]} 41... g3 {[%clk 0:01:01.2]} 42. Rg2 {[%clk 0:00:46.4]} 42... c5
{[%clk 0:00:59.9]} 43. Re4 {[%clk 0:00:44.2]} 43... Kb7 {[%clk 0:00:59.9]} 44.
Kd3 {[%clk 0:00:42.3]} 44... Rf8 {[%clk 0:00:51.4]} 45. Re3 {[%clk 0:00:37.8]}
45... Rf2 {[%clk 0:00:40]} 46. Rgxg3 {[%clk 0:00:38]} 46... Rxg3 {[%clk
0:00:40.1]} 47. Rxg3 {[%clk 0:00:39.9]} 47... Rxa2 {[%clk 0:00:41]} 48. Kc4
{[%clk 0:00:41.8]} 48... Rc2+ {[%clk 0:00:39.6]} 49. Kb3 {[%clk 0:00:41]} 49...
Rc1 {[%clk 0:00:40.1]} 50. Rg6 {[%clk 0:00:41.9]} 50... Rh1 {[%clk 0:00:25.4]}
51. Kc4 {[%clk 0:00:42.6]} 51... Rh5 {[%clk 0:00:26.1]} 52. Kb5 {[%clk 0:00:43]}
52... a6+ {[%clk 0:00:24.3]} 53. Ka5 {[%clk 0:00:43.8]} 53... c4+ {[%clk
0:00:21.5]} 54. Kb4 {[%clk 0:00:44.8]} 54... Rh4 {[%clk 0:00:22.8]} 55. Rf6
{[%clk 0:00:44.1]} 55... Ka7 {[%clk 0:00:22.6]} 56. Re6 {[%clk 0:00:44.8]} 56...
Kb7 {[%clk 0:00:23.7]} 57. Kc5 {[%clk 0:00:44.3]} 57... c3 {[%clk 0:00:21.3]}
58. Re7+ {[%clk 0:00:45.5]} 58... Kb8 {[%clk 0:00:21.2]} 59. Re3 {[%clk
0:00:44.9]} 59... c2 {[%clk 0:00:18.6]} 60. Rc3 {[%clk 0:00:44.9]} 60... Rh2
{[%clk 0:00:18.5]} 61. Kb6 {[%clk 0:00:45.8]} 61... Rh6+ {[%clk 0:00:17.9]} 62.
Ka5 {[%clk 0:00:45.4]} 62... Kb7 {[%clk 0:00:11.3]} 63. Rxc2 {[%clk 0:00:46]}
63... Rh5+ {[%clk 0:00:12.8]} 64. Kb4 {[%clk 0:00:46.5]} 64... Kb6 {[%clk
0:00:13.8]} 65. Re2 {[%clk 0:00:47.3]} 65... Rh4+ {[%clk 0:00:15.1]} 66. Kb3
{[%clk 0:00:47.7]} 66... Rh6 {[%clk 0:00:14.4]} 67. Re5 {[%clk 0:00:48.1]} 67...
a5 {[%clk 0:00:15.5]} 68. Rf5 {[%clk 0:00:47.8]} 68... Re6 {[%clk 0:00:14.7]}
69. Ka4 {[%clk 0:00:48.1]} 69... Re4+ {[%clk 0:00:15.6]} 70. Kb3 {[%clk
0:00:48.7]} 70... Rd4 {[%clk 0:00:16.3]} 71. Re5 {[%clk 0:00:48.6]} 71... Rb4+
{[%clk 0:00:16.6]} 72. Ka3 {[%clk 0:00:49.1]} 72... Ka6 {[%clk 0:00:17.9]} 73.
Rf5 {[%clk 0:00:48.8]} 73... Rh4 {[%clk 0:00:18.6]} 74. Re5 {[%clk 0:00:49.1]}
74... Kb6 {[%clk 0:00:19.9]} 75. Rf5 {[%clk 0:00:49.6]} 75... Rg4 {[%clk
0:00:21.4]} 76. Re5 {[%clk 0:00:50.7]} 76... Rg3+ {[%clk 0:00:22.9]} 77. Ka4
{[%clk 0:00:51.2]} 77... Rg4+ {[%clk 0:00:23.9]} 78. Kb3 {[%clk 0:00:51.6]}
78... Rf4 {[%clk 0:00:25.2]} 79. Rd5 {[%clk 0:00:52.3]} 79... Ka6 {[%clk
0:00:26]} 80. Re5 {[%clk 0:00:53.3]} 80... Kb6 {[%clk 0:00:27.1]} 81. Rd5 {[%clk
0:00:53.2]} 81... Rb4+ {[%clk 0:00:28.6]} 82. Ka3 {[%clk 0:00:53.9]} 82... Rh4
{[%clk 0:00:30]} 83. Re5 {[%clk 0:00:53.5]} 83... Rh3+ {[%clk 0:00:31.3]} 84.
Ka4 {[%clk 0:00:54.1]} 84... Rh1 {[%clk 0:00:32.5]} 85. Rb5+ {[%clk 0:00:53.2]}
85... Kc6 {[%clk 0:00:33.4]} 86. Rxa5 {[%clk 0:00:48.5]} 86... Ra1+ {[%clk
0:00:34.1]} 87. Kb4 {[%clk 0:00:48.9]} 87... Rxa5 {[%clk 0:00:34.2]} 88. Kxa5
{[%clk 0:00:48.8]} 1/2-1/2

[Event "*** Titled Tuesday 3|2 Blitz"]
[Site "Chess.com"]
[Date "2015.07.07"]
[Round "9"]
[White "chessloveyou"]
[Black "Bab3s"]
[Result "1/2-1/2"]
[WhiteElo "1981"]
[BlackElo "2144"]
[TimeControl "180+2"]
[EndTime "13:02:25 PDT"]
[Termination "Game drawn by stalemate"]

1. d4 {[%clk 0:03:01.9]} 1... Nf6 {[%clk 0:03:00.7]} 2. c4 {[%clk 0:03:01.4]}
2... e6 {[%clk 0:03:02.2]} 3. g3 {[%clk 0:03:00.9]} 3... d5 {[%clk 0:03:02.3]}
4. Bg2 {[%clk 0:03:01]} 4... Be7 {[%clk 0:03:03.7]} 5. Nh3 {[%clk 0:03:01.9]}
5... O-O {[%clk 0:03:04.7]} 6. O-O {[%clk 0:03:02.3]} 6... c5 {[%clk 0:03:04.6]}
7. cxd5 {[%clk 0:03:02.4]} 7... exd5 {[%clk 0:03:04.7]} 8. Nc3 {[%clk
0:03:02.6]} 8... cxd4 {[%clk 0:02:58.8]} 9. Qxd4 {[%clk 0:03:02.6]} 9... Nc6
{[%clk 0:03:00.3]} 10. Qd1 {[%clk 0:03:00.2]} 10... d4 {[%clk 0:02:59.7]} 11.
Nb1 {[%clk 0:02:43.8]} 11... Bc5 {[%clk 0:02:50.9]} 12. Nd2 {[%clk 0:02:43.8]}
12... Re8 {[%clk 0:02:51.4]} 13. Nb3 {[%clk 0:02:41.1]} 13... Bb6 {[%clk
0:02:52.4]} 14. Bg5 {[%clk 0:02:41.2]} 14... h6 {[%clk 0:02:52.6]} 15. Bxf6
{[%clk 0:02:39.8]} 15... Qxf6 {[%clk 0:02:54.5]} 16. Nf4 {[%clk 0:02:41.7]}
16... Qd8 {[%clk 0:02:31.5]} 17. Nd5 {[%clk 0:02:29.8]} 17... Be6 {[%clk
0:02:29]} 18. Nxb6 {[%clk 0:02:26.9]} 18... Qxb6 {[%clk 0:02:30.9]} 19. Bxc6
{[%clk 0:02:18.9]} 19... Bxb3 {[%clk 0:02:31.1]} 20. Qxb3 {[%clk 0:02:15.4]}
20... Qxb3 {[%clk 0:02:23]} 21. axb3 {[%clk 0:02:12.4]} 21... bxc6 {[%clk
0:02:24.4]} 22. Rfe1 {[%clk 0:02:07.9]} 22... Rab8 {[%clk 0:02:18.7]} 23. Ra3
{[%clk 0:02:07.7]} 23... Rb7 {[%clk 0:02:15.6]} 24. Kf1 {[%clk 0:02:05.8]} 24...
Reb8 {[%clk 0:02:12.7]} 25. Rc1 {[%clk 0:02:02.7]} 25... Rxb3 {[%clk 0:02:03.9]}
26. Rxa7 {[%clk 0:02:03]} 26... Rxb2 {[%clk 0:01:49.4]} 27. Rxc6 {[%clk
0:02:02.5]} 27... R8b7 {[%clk 0:01:08.4]} 28. Rxb7 {[%clk 0:01:45.2]} 28... Rxb7
{[%clk 0:01:10.3]} 29. Rd6 {[%clk 0:01:46.7]} 29... Rb4 {[%clk 0:01:10.6]} 30.
Ke1 {[%clk 0:01:47.7]} 30... Kf8 {[%clk 0:01:11.1]} 31. Kd2 {[%clk 0:01:42.2]}
31... Ke7 {[%clk 0:01:11.6]} 32. Ra6 {[%clk 0:01:43.1]} 32... Rb2+ {[%clk
0:00:37.8]} 33. Kd3 {[%clk 0:01:43.1]} 33... Kd7 {[%clk 0:00:31.6]} 34. Ra4
{[%clk 0:01:40.7]} 34... Ke6 {[%clk 0:00:30.4]} 35. Rxd4 {[%clk 0:01:39.7]}
35... f5 {[%clk 0:00:27.8]} 36. Ra4 {[%clk 0:01:32.8]} 36... h5 {[%clk
0:00:24.8]} 37. Ra6+ {[%clk 0:01:32.3]} 37... Kf7 {[%clk 0:00:25.5]} 38. h4
{[%clk 0:01:32.6]} 38... g6 {[%clk 0:00:25.7]} 39. Ke3 {[%clk 0:01:31.6]} 39...
Rc2 {[%clk 0:00:24.3]} 40. Rd6 {[%clk 0:01:25.4]} 40... Rb2 {[%clk 0:00:23.2]}
41. Rd2 {[%clk 0:01:25.8]} 41... Rb4 {[%clk 0:00:23.9]} 42. Kf3 {[%clk
0:01:24.3]} 42... Kf6 {[%clk 0:00:24.2]} 43. Ra2 {[%clk 0:01:25]} 43... Rc4
{[%clk 0:00:23.6]} 44. Ra6+ {[%clk 0:01:25.5]} 44... Kf7 {[%clk 0:00:24.5]} 45.
e3 {[%clk 0:01:21.3]} 45... Rb4 {[%clk 0:00:24.2]} 46. Ke2 {[%clk 0:01:21.5]}
46... Rb2+ {[%clk 0:00:24.8]} 47. Kf3 {[%clk 0:01:19.7]} 47... Rb4 {[%clk
0:00:25.5]} 48. Rd6 {[%clk 0:01:20.1]} 48... Ra4 {[%clk 0:00:25.1]} 49. Ke2
{[%clk 0:01:20.7]} 49... Ra2+ {[%clk 0:00:25.7]} 50. Rd2 {[%clk 0:01:21.3]}
50... Ra3 {[%clk 0:00:26.8]} 51. f3 {[%clk 0:01:15.4]} 51... Kf6 {[%clk
0:00:26.8]} 52. Rb2 {[%clk 0:01:15.6]} 52... Rc3 {[%clk 0:00:25]} 53. Kd2 {[%clk
0:01:14.3]} 53... Ra3 {[%clk 0:00:25.8]} 54. Ke2 {[%clk 0:01:12.3]} 54... Rc3
{[%clk 0:00:26]} 55. Kf2 {[%clk 0:01:13.4]} 55... Ra3 {[%clk 0:00:26.5]} 56.
Rb6+ {[%clk 0:01:07.8]} 56... Kf7 {[%clk 0:00:26.3]} 57. e4 {[%clk 0:01:09.1]}
57... fxe4 {[%clk 0:00:25.3]} 58. fxe4 {[%clk 0:01:10.3]} 58... Rc3 {[%clk
0:00:25.4]} 59. Ra6 {[%clk 0:01:03.8]} 59... Rb3 {[%clk 0:00:24.9]} 60. Ra1
{[%clk 0:00:59.4]} 60... Kf6 {[%clk 0:00:24.4]} 61. Ra5 {[%clk 0:00:57.8]} 61...
Rc3 {[%clk 0:00:21.4]} 62. Ra6+ {[%clk 0:00:57.9]} 62... Kf7 {[%clk 0:00:20.3]}
63. Ra8 {[%clk 0:00:59.1]} 63... Rb3 {[%clk 0:00:20.1]} 64. Ra1 {[%clk
0:00:56.3]} 64... Rc3 {[%clk 0:00:20.7]} 65. Kg2 {[%clk 0:00:57.6]} 65... Kf6
{[%clk 0:00:21.5]} 66. Ra6+ {[%clk 0:00:58.2]} 66... Kf7 {[%clk 0:00:21.9]} 67.
Ra8 {[%clk 0:00:58.2]} 67... Re3 {[%clk 0:00:21.5]} 68. Ra4 {[%clk 0:00:54.3]}
68... Kf6 {[%clk 0:00:22.3]} 69. Kf2 {[%clk 0:00:55]} 69... Rb3 {[%clk
0:00:23.7]} 70. Ra6+ {[%clk 0:00:54.6]} 70... Kf7 {[%clk 0:00:24.5]} 71. e5
{[%clk 0:00:55.8]} 71... Rb5 {[%clk 0:00:23]} 72. Rf6+ {[%clk 0:00:53.3]} 72...
Kg7 {[%clk 0:00:22.8]} 73. Re6 {[%clk 0:00:54.3]} 73... Kf7 {[%clk 0:00:23.3]}
74. Rf6+ {[%clk 0:00:49.6]} 74... Kg7 {[%clk 0:00:24.3]} 75. Kf3 {[%clk
0:00:50.7]} 75... Rxe5 {[%clk 0:00:23.8]} 76. Rc6 {[%clk 0:00:51.4]} 76... Rf5+
{[%clk 0:00:22.4]} 77. Ke4 {[%clk 0:00:52.3]} 77... Ra5 {[%clk 0:00:23.7]} 78.
Kf4 {[%clk 0:00:51.3]} 78... Ra4+ {[%clk 0:00:23.5]} 79. Ke5 {[%clk 0:00:47.5]}
79... Rg4 {[%clk 0:00:20.8]} 80. Rc7+ {[%clk 0:00:48.4]} 80... Kh6 {[%clk
0:00:21]} 81. Rc3 {[%clk 0:00:45.8]} 81... Ra4 {[%clk 0:00:19.3]} 82. Rd3 {[%clk
0:00:43.6]} 82... Ra5+ {[%clk 0:00:18.3]} 83. Rd5 {[%clk 0:00:43.5]} 83... Ra3
{[%clk 0:00:16.8]} 84. Kf4 {[%clk 0:00:43.2]} 84... Ra4+ {[%clk 0:00:17.9]} 85.
Kf3 {[%clk 0:00:42.5]} 85... Rb4 {[%clk 0:00:19]} 86. Re5 {[%clk 0:00:42]} 86...
Ra4 {[%clk 0:00:19.5]} 87. Re4 {[%clk 0:00:43.1]} 87... Ra1 {[%clk 0:00:18.3]}
88. Kf4 {[%clk 0:00:44.3]} 88... Rf1+ {[%clk 0:00:18.2]} 89. Ke3 {[%clk
0:00:45.1]} 89... Kg7 {[%clk 0:00:18]} 90. Rf4 {[%clk 0:00:42.6]} 90... Rg1
{[%clk 0:00:17.3]} 91. Rf3 {[%clk 0:00:43.2]} 91... Ra1 {[%clk 0:00:17.6]} 92.
Kf4 {[%clk 0:00:43.6]} 92... Kf6 {[%clk 0:00:16.9]} 93. Ke4+ {[%clk 0:00:41.7]}
93... Ke6 {[%clk 0:00:17.8]} 94. Rb3 {[%clk 0:00:41.9]} 94... Ra4+ {[%clk
0:00:17.8]} 95. Kf3 {[%clk 0:00:42.5]} 95... Ra5 {[%clk 0:00:17.1]} 96. Kf4
{[%clk 0:00:40.8]} 96... Ra4+ {[%clk 0:00:16.7]} 97. Kf3 {[%clk 0:00:36.7]}
97... Kf6 {[%clk 0:00:16.8]} 98. Rb6+ {[%clk 0:00:36.1]} 98... Kf5 {[%clk
0:00:17.7]} 99. Rb5+ {[%clk 0:00:37.1]} 99... Kf6 {[%clk 0:00:18.6]} 100. Rb1
{[%clk 0:00:36.1]} 100... Ra3+ {[%clk 0:00:17.7]} 101. Kf4 {[%clk 0:00:36]}
101... Ra4+ {[%clk 0:00:18.8]} 102. Kf3 {[%clk 0:00:37.4]} 102... Kf5 {[%clk
0:00:18.7]} 103. Rb6 {[%clk 0:00:33.5]} 103... Ra3+ {[%clk 0:00:19.1]} 104. Kg2
{[%clk 0:00:34.3]} 104... Ra2+ {[%clk 0:00:18.6]} 105. Kh3 {[%clk 0:00:34.8]}
105... Rd2 {[%clk 0:00:17.3]} 106. Rb5+ {[%clk 0:00:32.8]} 106... Kf6 {[%clk
0:00:17]} 107. Rg5 {[%clk 0:00:33.5]} 107... Rf2 {[%clk 0:00:14.1]} 108. g4
{[%clk 0:00:33]} 108... Rf3+ {[%clk 0:00:11.2]} 109. Kg2 {[%clk 0:00:33.9]}
109... hxg4 {[%clk 0:00:12.7]} 110. Rxg4 {[%clk 0:00:34.9]} 110... Ra3 {[%clk
0:00:14.2]} 111. Rf4+ {[%clk 0:00:35.4]} 111... Kg7 {[%clk 0:00:14.5]} 112. Rg4
{[%clk 0:00:36.8]} 112... Kh6 {[%clk 0:00:15.7]} 113. Rb4 {[%clk 0:00:37.2]}
113... Kh5 {[%clk 0:00:16.1]} 114. Kh2 {[%clk 0:00:37.2]} 114... Rc3 {[%clk
0:00:16.2]} 115. Kg2 {[%clk 0:00:37.4]} 115... Rd3 {[%clk 0:00:17.3]} 116. Kh2
{[%clk 0:00:38.5]} 116... Rd2+ {[%clk 0:00:15.4]} 117. Kg3 {[%clk 0:00:38.8]}
117... Rd3+ {[%clk 0:00:16.7]} 118. Kg2 {[%clk 0:00:37.5]} 118... Rd5 {[%clk
0:00:17.7]} 119. Kh2 {[%clk 0:00:37.7]} 119... Rf5 {[%clk 0:00:17.9]} 120. Kg3
{[%clk 0:00:37.8]} 120... Ra5 {[%clk 0:00:18.3]} 121. Rb3 {[%clk 0:00:36.9]}
121... Ra4 {[%clk 0:00:15.5]} 122. Rb5+ {[%clk 0:00:37.4]} 122... Kh6 {[%clk
0:00:16.7]} 123. Rb6 {[%clk 0:00:35.8]} 123... Kh5 {[%clk 0:00:15.5]} 124. Rb5+
{[%clk 0:00:36.5]} 124... Kh6 {[%clk 0:00:16.7]} 125. Kh3 {[%clk 0:00:33.9]}
125... Rc4 {[%clk 0:00:15.5]} 126. Rd5 {[%clk 0:00:33.3]} 126... Ra4 {[%clk
0:00:15.5]} 127. Rb5 {[%clk 0:00:30.7]} 127... Rc4 {[%clk 0:00:16.1]} 128. h5
{[%clk 0:00:29.4]} 128... gxh5 {[%clk 0:00:14.8]} 129. Kg3 {[%clk 0:00:28.7]}
129... Rg4+ {[%clk 0:00:14.3]} 130. Kh3 {[%clk 0:00:29.7]} 130... Rg6 {[%clk
0:00:15.1]} 131. Kh4 {[%clk 0:00:28.5]} 131... Rg4+ {[%clk 0:00:14.6]} 132. Kh3
{[%clk 0:00:28.9]} 132... Rf4 {[%clk 0:00:16]} 133. Re5 {[%clk 0:00:28.6]}
133... Kg6 {[%clk 0:00:16.4]} 134. Kg3 {[%clk 0:00:28.8]} 134... Ra4 {[%clk
0:00:15]} 135. Rb5 {[%clk 0:00:29.1]} 135... Ra3+ {[%clk 0:00:15.2]} 136. Kh4
{[%clk 0:00:29.4]} 136... Ra4+ {[%clk 0:00:16.7]} 137. Kh3 {[%clk 0:00:30]}
137... Ra6 {[%clk 0:00:17.2]} 138. Kg3 {[%clk 0:00:29.8]} 138... Rf6 {[%clk
0:00:17.6]} 139. Kh4 {[%clk 0:00:30.2]} 139... Rf4+ {[%clk 0:00:18.3]} 140. Kh3
{[%clk 0:00:31.3]} 140... Rf5 {[%clk 0:00:19.6]} 141. Rxf5 {[%clk 0:00:28.3]}
141... Kxf5 {[%clk 0:00:21.5]} 142. Kh4 {[%clk 0:00:28.9]} 142... Kg6 {[%clk
0:00:22.7]} 143. Kh3 {[%clk 0:00:28]} 143... Kg5 {[%clk 0:00:24.4]} 144. Kg3
{[%clk 0:00:28.1]} 144... h4+ {[%clk 0:00:26.3]} 145. Kh3 {[%clk 0:00:27.7]}
145... Kh5 {[%clk 0:00:28.2]} 146. Kh2 {[%clk 0:00:18.3]} 146... Kg4 {[%clk
0:00:30.1]} 147. Kg2 {[%clk 0:00:17.7]} 147... h3+ {[%clk 0:00:32]} 148. Kh2
{[%clk 0:00:18.1]} 148... Kh4 {[%clk 0:00:33.9]} 149. Kh1 {[%clk 0:00:18.7]}
149... Kg3 {[%clk 0:00:35.8]} 150. Kg1 {[%clk 0:00:19.2]} 150... h2+ {[%clk
0:00:37.3]} 151. Kh1 {[%clk 0:00:20]} 151... Kh3 {[%clk 0:00:39.2]} 1/2-1/2